Cogmind - Beta 14 @@@ ROGUE MODE // 2024.11.16 @ 20:22:21 Player: Zeldest Result: Destroyed by G-47 Trooper with Particle Gun Performance ------------- Evolutions (2) 1000 Regions Visited (4) 800 Robots Destroyed (81) 405 Value Destroyed (3197) 3197 Prototype IDs (1) 20 Alien Tech Used (0) 0 Bonus (285) 285 TOTAL SCORE: 5707 Bonus ------- High Alert Combat Kills 85 Entered Garrisons 200 Cogmind --------- Core Integrity 0/550 Matter 300/300 Energy 265/265 System Corruption 0% Temperature Cool (6) Movement Rolling (135) Ox3 Location -8/Garrison Parts ------- > --- POWER (1) -------- Improved Ion Engine > --- PROPULSION (2) --- Armored Wheel Armored Wheel > --- UTILITY (6) ------ Heat Sink Huge Storage Unit Visual Processing Unit Transmission Jammer > --- WEAPON (2) ------- (None) > --- INVENTORY (25) --- Light Ion Engine Armored Wheel Transmission Jammer Authchip [R/Combat] Authchip [R/Combat] Authchip [R/Combat] Authchip [R/Combat] Authchip [R/Combat] Relay Coupler [NC] (26) Relay Coupler [Swarmer] (39) Relay Coupler [Swarmer] (34) Relay Coupler [Swarmer] (31) Relay Coupler [Grunt] (26) Relay Coupler [Grunt] (23) Relay Coupler [Grunt] (27) Relay Coupler [Grunt] (25) Relay Coupler [Duelist] (23) Relay Coupler [Sentry] (17) Relay Coupler [Sentry] (18) Relay Coupler [Demolisher] (23) Relay Coupler [Specialist] (17) Improved Datajack Improved Datajack Peak State ------------ > --- POWER ------------ Nuclear Core > --- PROPULSION ------- Armored Wheel Armored Wheel > --- UTILITY ---------- Improved Heat Sink High-capacity Storage Unit Visual Processing Unit Improved Sensor Array Improved Terrain Scanner Transmission Jammer > --- WEAPON ----------- High-powered Shotgun Gauss Rifle > --- INVENTORY -------- Light Deuterium Engine Light Deuterium Engine Armored Wheel Armored Wheel Armored Wheel Armored Wheel Heat Sink High-capacity Storage Unit Transmission Jammer Transmission Jammer Transmission Jammer Field Laser EM Pulse Cannon EM Pulse Cannon Particle Cannon Ion Cannon Mini Grenade Launcher Improved Datajack Improved Datajack Katana [Rating: 35] Favorites ----------- Power Improved Ion Engine Engine Improved Ion Engine Power Core Nuclear Core Propulsion Armored Wheel Leg Improved Aluminum Leg Wheel Armored Wheel Utility High-capacity Storage Unit Device Improved Sensor Array Storage High-capacity Storage Unit Processor Visual Processing Unit Protection Light Armor Plating Weapon Light Cannon Energy Gun Field Laser Energy Cannon Particle Cannon Ballistic Gun High-powered Shotgun Ballistic Cannon Light Cannon Launcher Mini Grenade Launcher Special Weapon Plasma Cutter Slashing Weapon Katana Build | -11 -10 -9 -8 -8 ------- Run | Yrd Mat Mat Mat Gar Slots Evolved 4 | . . 2 2 . Power . | . . . . . Propulsion . | . . . . . Utility 4 | . . 2 2 . Weapon . | . . . . . Parts Attached 87 | 6 6 35 24 16 Power 15 | 1 1 6 3 4 Engine 12 | 1 1 6 1 3 Core 3 | . . . 2 1 Reactor . | . . . . . Propulsion 16 | 2 2 4 6 2 Treads . | . . . . . Leg 2 | . . . 2 . Wheel 14 | 2 2 4 4 2 Hover . | . . . . . Flight . | . . . . . Utility 30 | 1 1 14 9 5 Device 17 | 1 . 4 7 5 Storage 3 | . 1 1 1 . Processor 1 | . . . 1 . Hackware . | . . . . . Protection 9 | . . 9 . . Artifact . | . . . . . Weapon 26 | 2 2 11 6 5 Energy Gun 5 | . . 3 2 . Energy Cannon 6 | . . 3 . 3 Ballistic Gun 4 | 2 . . 2 . Ballistic Cannon 5 | . 2 1 2 . Launcher 1 | . . . . 1 Special Weapon 2 | . . 2 . . Impact Weapon . | . . . . . Slashing Weapon 3 | . . 2 . 1 Piercing Weapon . | . . . . . Special Melee Weapon . | . . . . . Unidentified Prototypes . | . . . . . Parts Lost 34 | . 2 10 5 17 Power 8 | . 1 3 1 3 Propulsion 6 | . . 2 2 2 Utility 12 | . 1 2 2 7 Weapon 8 | . . 3 . 5 Highest Loss Streak 5 | . 2 2 2 5 To Critical Strikes . | . . . . . Average Slot Usage (%) 88 | . 85 86 96 83 Engine 7 | . 13 10 2 5 Core 1 | . . . 5 1 Leg 1 | . . . 4 . Wheel 18 | . 28 21 13 16 Device 18 | . 1 8 33 27 Storage 10 | . 12 11 9 9 Processor 3 | . . . 5 9 Protection 7 | . . 14 2 . Energy Gun 1 | . . 1 4 . Energy Cannon 3 | . . 5 . 6 Ballistic Gun 2 | . 11 . 6 1 Ballistic Cannon 7 | . 16 10 6 . Special Weapon 1 | . . 2 . . Slashing Weapon 1 | . . 1 . 4 Peak Build Rating 35 | 6 9 22 35 33 Average Rating 20 | 3 7 14 28 27 On Entrance 13 | . 6 9 21 33 Naked Turns . | . . . . . Heaviest Build 101 | 8 49 65 98 101 Greatest Support 28 | 20 24 24 28 24 Greatest Overweight (x) 27 | . 2 5 4 27 Average Overweight (x) 2 | . 1 2 2 3 Largest Inventory Capacity 25 | 5 20 20 25 25 Average Capacity 20 | 5 18 20 20 25 Most Carried 23 | 5 11 20 20 23 Average Carried 15 | 1 5 14 18 18 Final Capacity 25 | 5 20 20 25 25 Final Carried 23 | 2 8 18 20 23 Class Distribution -------------------- 68% | Mutant 13% | Scavenger-Mutant 12% | Skirmisher 5% | Scavenger-Skirmisher Dominant Class ---------------- Mutant | -10/Materials Mutant | -9/Materials Skirmisher | -8/Materials Mutant | -8/Garrison Resources | -11 -10 -9 -8 -8 ----------- Run | Yrd Mat Mat Mat Gar Matter Collected 1912 | 289 95 749 455 324 Remotely . | . . . . . Salvage Created 2673 | 82 140 1366 655 430 Parts 163 | 10 11 85 32 25 Haulers Intercepted 1 | . . 1 . . Recyclers Shooed 1 | . . 1 . . Parts Field Recycled . | . . . . . Retrieved Matter . | . . . . . Parts Self-Destructed . | . . . . . Prevented . | . . . . . Kills | -11 -10 -9 -8 -8 ------- Run | Yrd Mat Mat Mat Gar Combat Hostiles Destroyed 69 | . 5 35 15 14 Melee 11 | . . 4 . 7 Guns 16 | . 5 2 7 2 Cannons 37 | . . 28 8 1 AOE 4 | . . . . 4 Classes Destroyed 11 | 1 2 7 1 . Worker 5 | . . 2 3 . Tunneler 4 | 4 . . . . Hauler 1 | . . 1 . . Recycler 1 | . . 1 . . Watcher 1 | . . 1 . . Swarmer 14 | . 3 6 . 5 Grunt 30 | . 2 17 8 3 Brawler 2 | . . 1 1 . Duelist 1 | . . 1 . . Sentry 18 | . . 10 5 3 Hunter 4 | . . . 1 3 Best Kill Streak 6 | 4 4 4 6 3 Combat Bots Only 4 | . 4 4 4 3 Max Kills in Single Turn 2 | 1 2 2 2 1 Gunslinging 1 | . 1 . . . Exploded 1 | . . . . 1 Melee 1 | . . 1 . 1 Uniques/NPCs Destroyed . | . . . . . Combat | -11 -10 -9 -8 -8 -------- Run | Yrd Mat Mat Mat Gar Hostile Shots Fired 502 | . 26 211 75 190 Missed 98 | . 3 53 10 32 Damage Taken 4891 | . 257 1895 1120 1619 Core 890 | . 49 281 200 360 Absorbed by Shields 22 | . . . . 22 Redirected to Shielding 8 | . . 8 . . Regen/Repaired (Parts) 40 | . . 40 . . Core Remaining (%) 69 | 100 80 29 . . Volleys Fired 212 | 7 12 104 50 39 Largest 2 | 2 2 2 2 2 Hottest 136 | 40 40 136 126 123 Shots Fired 366 | 14 24 174 100 54 Gun 144 | 14 24 26 54 26 Cannon 195 | . . 131 46 18 Launcher 10 | . . . . 10 Special 17 | . . 17 . . Kinetic 224 | 14 24 102 58 26 Thermal 127 | . . 72 42 13 Explosive 10 | . . . . 10 Electromagnetic 5 | . . . . 5 Robot Hit Streak 15 | 5 10 15 13 8 Robot Miss Streak 5 | 3 1 5 2 3 Penetration Max . | . . . . . Secondary Targets 1 | . 1 . . . Max Gunslinging Chain 1 | . 1 . . . Shots Hit Robots 275 | 6 20 123 67 59 Core Hits 126 | 4 8 56 31 27 Critical Kills . | . . . . . Critical Parts Destroyed . | . . . . . Critical Strikes 13 | . . 8 4 1 Burn 4 | . . 3 1 . Blast 5 | . . 2 3 . Sever 4 | . . 3 . 1 Melee Attacks 52 | . . 13 . 39 Impact . | . . . . . Slashing 52 | . . 13 . 39 Piercing . | . . . . . Sneak Attacks 1 | . . 1 . . Combat Hostiles . | . . . . . Follow-up Attacks . | . . . . . Damage Inflicted 5637 | 75 253 2259 1540 1510 Guns 1486 | 75 253 377 629 152 Cannons 2418 | . . 1524 644 250 Explosions 677 | . . . 267 410 Melee 930 | . . 232 . 698 Ramming 31 | . . 31 . . Kinetic 2470 | 75 253 1177 813 152 Thermal 1543 | . . 819 460 264 Explosive 618 | . . . 267 351 Electromagnetic 45 | . . . . 45 Impact . | . . . . . Slashing 930 | . . 232 . 698 Piercing . | . . . . . Highest Corruption 6 | . 6 . . . Average Corruption 4 | . 4 . . . Corruption Purged . | . . . . . Corruption Blocked . | . . . . . Overload Shots . | . . . . . Overflow Damage 98 | . . 16 39 43 Projectiles . | . . . . . Explosions 41 | . . . 39 2 Melee 57 | . . 16 . 41 Knockbacks 18 | . . 12 6 . Impact . | . . . . . Kinetic 17 | . . 11 6 . Secondary 1 | . . 1 . . Self-Inflicted Damage 170 | . . 14 113 43 Shots 2 | . . . 1 1 Rammed 6 | . . 6 . . Targets Rammed 6 | . . 6 . . Kicked . | . . . . . Crushed . | . . . . . Highest Temperature 381 | . 2 381 208 23 Average Temperature 83 | . 2 91 65 7 Received Heat Transfer 1557 | . 105 705 423 324 Effects 3 | . . 3 . . Energy Bleed 3 | . . 3 . . Siege Activations . | . . . . . Robots Corrupted . | . . . . . Combat Hostiles . | . . . . . Parts Fried . | . . . . . Impact Corruptions . | . . . . . Robots Melted 1 | . . 1 . . Combat Hostiles 1 | . . 1 . . Parts Melted 13 | . . 5 8 . Heat Transferred 3200 | . . 1870 1073 257 Parts Sabotaged . | . . . . . Parts Stolen . | . . . . . Parts Stripped . | . . . . . Power Chain Reactions 1 | . . . . 1 Alert | -11 -10 -9 -8 -8 ------- Run | Yrd Mat Mat Mat Gar Peak Influence 680 | 20 120 552 438 680 Initial 232 | . 13 50 232 43 Average 202 | 5 94 182 197 298 Maximum Alert Level 2 | . . 2 2 2 Low Security (%) 56 | 100 100 65 42 43 Level 1 31 | . . 23 55 27 Level 2 11 | . . 11 2 29 Level 3 . | . . . . . Level 4 . | . . . . . Level 5 . | . . . . . High Security . | . . . . . Max Security . | . . . . . Squads Dispatched 6 | . . 5 1 . Investigation 2 | . . 2 . . Extermination . | . . . . . Reinforcement 3 | . . 2 1 . Assault 1 | . . 1 . . Garrison . | . . . . . Intercept . | . . . . . Searches Triggered . | . . . . . Construction Impeded . | . . . . . Haulers Reinforced . | . . . . . Active Scanning Responses . | . . . . . Cargo Convoy Interrupts . | . . . . . Stealth | -11 -10 -9 -8 -8 --------- Run | Yrd Mat Mat Mat Gar Distress Signals 9 | . . 4 5 . Communications Jammed . | . . . . . Distress Signals . | . . . . . Times Spotted 122 | . 5 68 25 24 Peak Tracking Total 6 | . 4 6 6 3 Tactical Retreats 13 | . . 6 2 5 Traps | -11 -10 -9 -8 -8 ------- Run | Yrd Mat Mat Mat Gar Traps Triggered 14 | . 3 3 1 7 Indirectly . | . . . . . Trap Hack Attempts . | . . . . . Triggered . | . . . . . Disarmed . | . . . . . Reprogrammed . | . . . . . Reused . | . . . . . Traps Extracted . | . . . . . Installed . | . . . . . Triggered . | . . . . . Machines | -11 -10 -9 -8 -8 ---------- Run | Yrd Mat Mat Mat Gar Machines Disabled 5 | . . . 1 4 Max in Single Turn 1 | . . . 1 1 Garrison Relay 3 | . . . . 3 Machines Repaired . | . . . . . Machines Dismantled . | . . . . . Machines Sabotaged . | . . . . . Overloaded Fab Kills . | . . . . . Hacking | -11 -10 -9 -8 -8 --------- Run | Yrd Mat Mat Mat Gar Machines Accessed 28 | . 3 14 10 1 Terminals 22 | . 3 9 9 1 Fabricators . | . . . . . Repair Stations 2 | . . 2 . . Recycling Units 1 | . . 1 . . Scanalyzers 2 | . . 2 . . Garrison Access 1 | . . . 1 . Total Hacks 85 | . 7 42 33 3 Successful 39 | . 4 18 16 1 Failed 46 | . 3 24 17 2 Catastrophic 8 | . 1 4 3 . Database Lockouts . | . . . . . Manual 48 | . 6 20 21 1 Terminals 71 | . 7 30 31 3 Fabricators . | . . . . . Repair Stations 4 | . . 4 . . Recycling Units 2 | . . 2 . . Scanalyzers 6 | . . 6 . . Garrison Access 2 | . . . 2 . Terminal Hacks 11 | . 1 3 7 . Branch Access Points 1 | . . . 1 . Emergency Access Points 4 | . 1 1 2 . Unreport Threat 3 | . . 1 2 . Maintenance Status 1 | . . . 1 . Assault Status 1 | . . 1 . . Hauler Manifests 1 | . . . 1 . Fabricator Hacks . | . . . . . Repair Station Hacks 2 | . . 2 . . Scan Component 1 | . . 1 . . Repair 1 | . . 1 . . Recycling Unit Hacks . | . . . . . Scanalyzer 4 | . . 4 . . Insert Component 2 | . . 2 . . Analyze 2 | . . 2 . . Garrison Access Hacks 2 | . . . 2 . Unlock Access 1 | . . . 1 . Coupler Status 1 | . . . 1 . Unauthorized Hacks 20 | . 3 9 7 1 Terminals 18 | . 3 7 7 1 Track 1 | . . 1 . . Botnet 13 | . 3 4 5 1 Operators 4 | . . 2 2 . Fabricators . | . . . . . Repair Stations . | . . . . . Recycling Units 1 | . . 1 . . Recyclers 1 | . . 1 . . Scanalyzers 1 | . . 1 . . Extract 1 | . . 1 . . Garrison Access . | . . . . . Data Cores Recovered . | . . . . . Used . | . . . . . Hacking Detections 24 | . 3 11 9 1 Full Trace Events 4 | . . 3 1 . Feedback Events . | . . . . . Feedback Blocked . | . . . . . Robot Schematics Acquired . | . . . . . Robots Built . | . . . . . Authchips . | . . . . . Time . | . . . . . Total Robot Build Rating . | . . . . . Part Schematics Acquired 8 | . . 8 . . Parts Built . | . . . . . Authchips . | . . . . . Time . | . . . . . Total Part Build Rating . | . . . . . Parts Repaired 1 | . . 1 . . Time 32 | . . 32 . . Parts Recycled . | . . . . . Recycled Matter . | . . . . . Retrieved Matter . | . . . . . Retrieved Components . | . . . . . Parts Scanalyzed 2 | . . 2 . . Part Schematics Acquired 2 | . . 2 . . Parts Damaged . | . . . . . Bothacking | -11 -10 -9 -8 -8 ------------ Run | Yrd Mat Mat Mat Gar Used RIF Installer . | . . . . . Robots Hacked . | . . . . . Non-combat . | . . . . . Combat . | . . . . . Robot Hacks Applied . | . . . . . Relay Couplers Released 14 | . . . . 14 Machine Destruction 14 | . . . . 14 Fabnet Peak Effective % . | . . . . . Robots Rewired . | . . . . . Allies Hacked . | . . . . . Hacks Repelled . | . . . . . Allies | -11 -10 -9 -8 -8 -------- Run | Yrd Mat Mat Mat Gar Total Allies . | . . . . . Largest Group . | . . . . . Highest-Rated Group . | . . . . . Highest-Rated Ally . | . . . . . Total Orders . | . . . . . Ally Attacks . | . . . . . Total Damage . | . . . . . Kills . | . . . . . Allies Corrupted . | . . . . . Allies Melted . | . . . . . Intel | -11 -10 -9 -8 -8 ------- Run | Yrd Mat Mat Mat Gar Robot Analysis Total . | . . . . . Derelict Logs Recovered . | . . . . . Drone Launches . | . . . . . Drone Recoveries . | . . . . . Exploration | -11 -10 -9 -8 -8 ------------- Run | Yrd Mat Mat Mat Gar Turns Passed 6278 | 80 243 3078 1707 1170 Spaces Moved 3429 | 66 166 1754 857 586 Core 31 | 30 . . . 1 Treads . | . . . . . Legs 145 | . . . 145 . Wheels 3253 | 36 166 1754 712 585 Hover . | . . . . . Flight . | . . . . . Fastest Speed 50 | 50 80 105 120 135 Average Speed 128 | 66 109 120 142 143 Slowest Speed 1400 | 80 120 165 260 1400 Overloaded Moves . | . . . . . Propulsion Burnouts . | . . . . . Robots Hopped . | . . . . . Cave-ins Triggered . | . . . . . Exploration Rate (%) 50 | 4 29 98 59 62 Regions Visited 4 Branch Regions . Pre-discovered Areas . | . . . . . Known Exits Taken 1 | . . . 1 . Unknown Exits Taken 3 | 1 1 1 . . Scrap Searched . | . . . . . Spaces Dug . | . . . . . Terrain Destroyed 114 | . . . 39 75 Melee . | . . . . . Projectile 2 | . . . 2 . AOE 112 | . . . 37 75 Terrain Rammed . | . . . . . Walls Destroyed . | . . . . . Machines Disabled . | . . . . . Actions | -11 -10 -9 -8 -8 --------- Run | Yrd Mat Mat Mat Gar Total 4845 | 88 208 2500 1247 802 Wait 857 | . 3 534 278 42 Move 3426 | 65 165 1753 857 586 Hop . | . . . . . Pick Up 95 | 9 13 35 19 19 Fast Attach 11 | . . 3 3 5 Attach 46 | 6 6 17 8 9 Detach 8 | . 4 1 3 . Swap 31 | . . 15 13 3 Drop 44 | 1 5 14 16 8 Fire 212 | 7 12 104 50 39 Melee 52 | . . 13 . 39 Ram 6 | . . 6 . . Kick . | . . . . . Crush . | . . . . . Escape Stasis 52 | . . . . 52 Rewire . | . . . . . Trap . | . . . . . Miscellaneous 5 | . . 5 . . Route ------- -11/Scrapyard -10/Materials -9/Materials (discovered 5 exits: *Mat x3 / [*Min x2]) -8/Materials (discovered 2 exits: [*Fac] / Gar) -8/Garrison (discovered 2 exits: [*Fac x2]) History --------- Turn | Location | Event 11 | -11/Scrapyard | Discovered new exit (range 15) 81 | -11/Scrapyard | Entered Materials 289 | -10/Materials | Discovered new exit (range 7) 307 | -10/Materials | Build established: Mutant 324 | -10/Materials | Entered another Materials area 324 | -9/Materials | Evolved 2 slots: Utility x2 700 | -9/Materials | Repaired Arm. Wheel 1300 | -9/Materials | Discovered new exit (range 15) 1400 | -9/Materials | Discovered new exit (range 7) 1572 | -9/Materials | Discovered new exit (range 11) 2183 | -9/Materials | Discovered new exit (range 15) 2920 | -9/Materials | Discovered new exit (range 14) 3124 | -9/Materials | First assault squad dispatched 3165 | -9/Materials | Core integrity fell below 50% 3402 | -9/Materials | Entered another Materials area 3402 | -8/Materials | Evolved 2 slots: Utility x2 4389 | -8/Materials | Discovered new exit (range 5) 4951 | -8/Materials | Build established: Skirmisher 5109 | -8/Materials | Identified exit to Garrison 5109 | -8/Materials | Entered Garrison 5147 | -8/Garrison | Triggered checkpoint 5301 | -8/Garrison | Garrison Relay disabled 5457 | -8/Garrison | Build established: Mutant 5495 | -8/Garrison | Triggered checkpoint 5602 | -8/Garrison | Discovered new exit (range 8) 5613 | -8/Garrison | Core integrity fell below 50% 5658 | -8/Garrison | Lost 5 parts (1n3u1w) 5671 | -8/Garrison | Triggered checkpoint 5730 | -8/Garrison | Lost 3 parts (1n1u1w) 5815 | -8/Garrison | Triggered checkpoint 5838 | -8/Garrison | Core integrity fell below 20% 5925 | -8/Garrison | Triggered checkpoint 5979 | -8/Garrison | Garrison Relay disabled 6063 | -8/Garrison | Discovered new exit (range 17) 6114 | -8/Garrison | Garrison Relay disabled 6269 | -8/Garrison | Triggered checkpoint 6279 | -8/Garrison | Destroyed by G-47 Trooper with Particle Gun Last Messages --------------- 06224_ Field strength at 80. 06225_ Field strength at 70. 06226_ Field strength at 60. 06227_ Field strength at 50. 06228_ Field strength at 40. 06229_ Field strength at 30. 06230_ Field strength at 20. 06231_ Field strength at 10. 06232_ Stasis field depleted. 06269_ Beams of light sweep through the air. An alarm sounds. 06271_ Critical hit (Burn: +37). 06273_ Triggered Stasis Trap. 06273_ A bubble of rippling energy engulfs the area. 06273_ Field strength at 90. 06274_ Field strength at 80. 06275_ Field strength at 70. 06276_ Field strength at 60. 06277_ Katana destroyed. 06278_ Field strength at 45. 06278_ Imp. Heat Sink destroyed. Map ----- +----------------------------------------------------+ | ???????????????# #????# #?????????????????# ### | | ???????????????# #????# #?????????????????# ##? | | ???????????????# ###### #?????????????????# T#? | | ???????????????# #?????????????????# ##? | | ???????????????######## #????????##???????# #?? | | ??????????????????????# #???????? ???????# #?? | | ??????????????????????# #???????? #???????# #?? | | ??????????????????????# #######?? #???????# #?? | | ??????????????????????# ## ### #???????# #?? | | ??????????????????????# ## ##"###??????# #?? | | ??????????????????????# =% %= ######## #?? | | ??????????????????????# #?? | | ??????????????????????# = #?? | | ??????????????????????# ## ## ###########?? | | ??????????????????????# ## ##[ ###?????????? | | ??????????????????????" ####??????? | | ??????????????????????" s ## ####???? | | ??????????????????????" ## # #???? | | ??????????????????????" # #???? | | ??????????????????????# ## ## ####=# ##???? | | ??????????????????????# ## ## ## %# #####? | | ??????????????????????# % #? | | ??????????????????????# g ^ #? | | ??????????????????????# ^^ #? | | ??????????????????????## g## ######### ### #? | | ???????????????????????# @#? #???????# #?# #? | | ???????????????????????#^ #?#####???????# #?# ## | | ???????????????????????# #?????????????# #?# ## | | ???????????????????????# #?????????????# #?# ## | | ???????????????????????# #?????????????# #?# ## | | ???????????????????????# #?????????????# #?# ## | | ???????????????????????# #?????????????? ?# [+[ | | ??????????????????????? #?????????????? ?# =!+! | | ??????????????????????? #??????????????##?# [## | | ???????????????????????####?????????????????# ## | | ????????????????????????????????????????????# ## | | ????????????????????????????????????????????# ## | | ????????????????????????????????????????????# ## | | ????????????????????????????????????????????# #? | | ????????????????????????????????????????????# #? | | ????????????????????????????????????????????# #? | | ????????????????????????????????????????????# ## | | ????????????????????????????????????????????# | | ????????????????????????????????????????????# | | ????????????????????????????????????????????# | | ????????????????????????????????????????????###### | | ?????????????????????????????????????????????????? | | ????????????????????????????????????????????###### | | ????????????????????????????????????????????# | | ????????????????????????????????????????????# | +----------------------------------------------------+ Best States ------------- Heat Dissipation 59 Energy Generation 14 Energy Capacity 265 Matter Stores 300 Matter Capacity 300 Sight Range 18 Robot Scan Range 15 Terrain Scan Range 16 Terrain Scan Density 10 Jamming Range 12 Armor Coverage 300 Power Shielding 33 Evasion (%) 50 Authchip Count 5 Trap Extractor Capacity 4 Item Schematics ----------------- Imp. Datajack | -9/Materials | Scanalyzed Arm. Wheel | -9/Materials | Scanalyzed Med. Laser | -9/Materials | Extracted Wheel | -9/Materials | Extracted Imp. Treads | -9/Materials | Extracted Hvy. Assault Rifle | -9/Materials | Extracted Terrain Scan Processor | -9/Materials | Extracted Adv. Beam Cannon | -9/Materials | Extracted Robot Schematics ------------------ None Fabricated ------------ Nothing Alien Tech Used ----------------- None Achievements -------------- None Challenges ------------ None Game ------ Seed SubatomicElectrostormSteel Manual? 0 Play Time 01:06:21 Cumulative 43.5 hours Start 2024.11.16 @ 19:17:08 End 2024.11.16 @ 20:22:21 Sessions 1 Manual Loads 0 Difficulty Rogue Special Mode None Game No. 83 Rogue 83 Adventurer 0 Explorer 0 Win Type - Total 0 Types 0/0/0/0/0/0/0/0/0 Lore% 14 Gallery% 31 Achievement% 28 Wizard Run 0 Options --------- Layout 0 ASCII 0 Keyboard 1 Movement Numpad Keybinds 0 Fullscreen 1 Font 18/SmallcapsGlow Map View 76x50 Zoom Use 0% Tactical HUD 1 Map Filters NONE Filters NONE Steam 1 RUN: ca93393a-155d-4655-bb7a-a3a5a874abd2